[Event "Early-Titled-Tuesday-Blitz-October-10-2023"]
[Site "Chess.com"]
[Date "2023.10.10"]
[Round "3"]
[White "elprimo2012mortis"]
[Black "BardArtem"]
[Result "0-1"]
[WhiteElo "2602"]
[BlackElo "2837"]
[TimeControl "180+1"]
[EndTime "8:29:39 PDT"]
[Termination "BardArtem won by resignation"]

1. e4 {[%clk 0:03:00.9]} 1... e5 {[%clk 0:02:59.2]} 2. Bc4 {[%clk 0:03:00.8]}
2... Nf6 {[%clk 0:02:56.4]} 3. d3 {[%clk 0:03:00.9]} 3... Nc6 {[%clk 0:02:53.3]}
4. Nc3 {[%clk 0:03:00.2]} 4... Na5 {[%clk 0:02:48.4]} 5. Nge2 {[%clk 0:02:59.9]}
5... Nxc4 {[%clk 0:02:48.2]} 6. dxc4 {[%clk 0:03:00.8]} 6... h6 {[%clk
0:02:46.6]} 7. O-O {[%clk 0:03:00.2]} 7... Be7 {[%clk 0:02:44.8]} 8. f3 {[%clk
0:02:58.9]} 8... O-O {[%clk 0:02:44.4]} 9. Be3 {[%clk 0:02:58.9]} 9... d6 {[%clk
0:02:43.9]} 10. b3 {[%clk 0:02:58.2]} 10... Be6 {[%clk 0:02:42.7]} 11. Qd3
{[%clk 0:02:56.5]} 11... Nd7 {[%clk 0:02:42.5]} 12. g4 {[%clk 0:02:51]} 12...
Bg5 {[%clk 0:02:37.2]} 13. Bxg5 {[%clk 0:02:44.5]} 13... hxg5 {[%clk 0:02:38.1]}
14. Ng3 {[%clk 0:02:41.4]} 14... g6 {[%clk 0:02:30.3]} 15. Kg2 {[%clk
0:02:34.8]} 15... Kg7 {[%clk 0:02:29.1]} 16. h3 {[%clk 0:02:34.4]} 16... Nc5
{[%clk 0:02:26]} 17. Qe3 {[%clk 0:02:34.3]} 17... Bd7 {[%clk 0:02:25.6]} 18.
Nge2 {[%clk 0:02:25.1]} 18... Rh8 {[%clk 0:02:22]} 19. Rh1 {[%clk 0:02:22.4]}
19... Ne6 {[%clk 0:02:20.8]} 20. Rad1 {[%clk 0:02:17.1]} 20... a5 {[%clk
0:01:33.8]} 21. a4 {[%clk 0:02:16.3]} 21... b6 {[%clk 0:01:33.3]} 22. Nd5 {[%clk
0:02:11.6]} 22... Bc6 {[%clk 0:01:25.2]} 23. Qf2 {[%clk 0:02:10.1]} 23... Rh4
{[%clk 0:01:20.2]} 24. Ne3 {[%clk 0:02:03.1]} 24... Qf6 {[%clk 0:01:15.8]} 25.
Rh2 {[%clk 0:01:56.6]} 25... Rah8 {[%clk 0:01:11.1]} 26. Nd5 {[%clk 0:01:49.6]}
26... Bxd5 {[%clk 0:01:01]} 27. cxd5 {[%clk 0:01:50.5]} 27... Nf4+ {[%clk
0:01:01.7]} 28. Nxf4 {[%clk 0:01:50.7]} 28... Qxf4 {[%clk 0:01:02.6]} 29. Qd2
{[%clk 0:01:09.5]} 29... f5 {[%clk 0:01:01.2]} 30. Qxf4 {[%clk 0:01:07.4]} 30...
gxf4 {[%clk 0:01:02.1]} 31. gxf5 {[%clk 0:01:02.7]} 31... gxf5 {[%clk
0:01:01.3]} 32. exf5 {[%clk 0:01:03.6]} 32... Kf6 {[%clk 0:01:01.6]} 33. Rdh1
{[%clk 0:01:03.6]} 33... Kxf5 {[%clk 0:01:00]} 34. Kf2 {[%clk 0:01:04.3]} 34...
R8h5 {[%clk 0:00:55.8]} 35. Ke2 {[%clk 0:01:01.4]} 35... Rg5 {[%clk 0:00:54.4]}
36. Kd3 {[%clk 0:00:54.4]} 36... Rg3 {[%clk 0:00:53.1]} 37. Kc4 {[%clk 0:00:37]}
37... Rxf3 {[%clk 0:00:52.4]} 38. Kb5 {[%clk 0:00:37.3]} 38... e4 {[%clk
0:00:52.1]} 39. c4 {[%clk 0:00:26.5]} 39... Rxb3+ {[%clk 0:00:48.1]} 40. Kc6
{[%clk 0:00:26.8]} 40... Rh7 {[%clk 0:00:44.7]} 41. h4 {[%clk 0:00:26.6]} 41...
f3 {[%clk 0:00:38.1]} 42. h5 {[%clk 0:00:27]} 42... e3 {[%clk 0:00:38.1]} 43. h6
{[%clk 0:00:26.7]} 43... e2 {[%clk 0:00:33.7]} 44. Rh5+ {[%clk 0:00:26.4]} 44...
Kf4 {[%clk 0:00:29.9]} 45. R5h4+ {[%clk 0:00:26.6]} 45... Ke3 {[%clk 0:00:28.9]}
46. Rg4 {[%clk 0:00:26.9]} 46... f2 {[%clk 0:00:16.6]} 47. Rg3+ {[%clk
0:00:21.8]} 47... Kd2 {[%clk 0:00:16.9]} 48. Rxb3 {[%clk 0:00:21.6]} 48... e1=Q
{[%clk 0:00:17]} 49. Rb2+ {[%clk 0:00:21.6]} 49... Kc3 {[%clk 0:00:16.9]} 50.
Rb1 {[%clk 0:00:19.2]} 50... Qe3 {[%clk 0:00:12.3]} 51. Ra1 {[%clk 0:00:18]}
51... Qc5+ {[%clk 0:00:10.2]} 52. Kb7 {[%clk 0:00:18.5]} 52... Kd3 {[%clk
0:00:08]} 53. Rh3+ {[%clk 0:00:17.6]} 53... Ke4 {[%clk 0:00:06.3]} 54. Rh4+
{[%clk 0:00:18.1]} 54... Kf3 {[%clk 0:00:05.3]} 55. Rah1 {[%clk 0:00:18.2]}
55... Ke2 {[%clk 0:00:02.9]} 56. Re4+ {[%clk 0:00:17.8]} 56... Kd3 {[%clk
0:00:03]} 57. Rf4 {[%clk 0:00:16.2]} 57... Qe3 {[%clk 0:00:03.4]} 58. Rfh4
{[%clk 0:00:16]} 58... Qe2 {[%clk 0:00:03]} 59. R4h3+ {[%clk 0:00:16.1]} 59...
Kd2 {[%clk 0:00:03.2]} 60. Ra3 {[%clk 0:00:16]} 60... f1=Q {[%clk 0:00:03.3]}
61. Ra2+ {[%clk 0:00:16.2]} 61... Ke3 {[%clk 0:00:04]} 62. Rxe2+ {[%clk
0:00:15.5]} 62... Qxe2 {[%clk 0:00:04.3]} 63. Rh3+ {[%clk 0:00:16.2]} 63... Kd4
{[%clk 0:00:04.3]} 64. c5 {[%clk 0:00:16.7]} 64... Kxc5 {[%clk 0:00:04.1]} 65.
Rc3+ {[%clk 0:00:16.3]} 65... Kd4 {[%clk 0:00:04.2]} 66. Rc6 {[%clk 0:00:17.2]}
66... Qc4 {[%clk 0:00:04.1]} 67. Ka7 {[%clk 0:00:15.9]} 67... Qxc6 {[%clk
0:00:04]} 68. dxc6 {[%clk 0:00:16.8]} 68... Kc5 {[%clk 0:00:04.2]} 69. Kb7
{[%clk 0:00:16.5]} 69... Rf7 {[%clk 0:00:02.6]} 70. Ka6 {[%clk 0:00:17.4]} 70...
Kxc6 {[%clk 0:00:02.7]} 71. Ka7 {[%clk 0:00:17.8]} 71... Rh7 {[%clk 0:00:03.6]}
72. Kb8 {[%clk 0:00:18.3]} 72... Rxh6 {[%clk 0:00:03.7]} 73. Ka7 {[%clk
0:00:19.2]} 73... Rh7 {[%clk 0:00:04.1]} 74. Ka6 {[%clk 0:00:18.9]} 74... d5
{[%clk 0:00:04.2]} 75. Ka7 {[%clk 0:00:19.8]} 75... d4 {[%clk 0:00:05.1]} 76.
Ka6 {[%clk 0:00:20.6]} 76... d3 {[%clk 0:00:06]} 77. Ka7 {[%clk 0:00:21.5]}
77... d2 {[%clk 0:00:06.9]} 78. Ka6 {[%clk 0:00:22.4]} 78... d1=Q {[%clk
0:00:07.5]} 79. Ka7 {[%clk 0:00:23.3]} 79... Qd8 {[%clk 0:00:07.4]} 0-1

[Event "Early-Titled-Tuesday-Blitz-October-10-2023"]
[Site "Chess.com"]
[Date "2023.10.10"]
[Round "3"]
[White "Rodalquilar"]
[Black "Mystery2007"]
[Result "1-0"]
[WhiteElo "2741"]
[BlackElo "2478"]
[TimeControl "180+1"]
[EndTime "8:29:44 PDT"]
[Termination "Rodalquilar won by checkmate"]

1. d4 {[%clk 0:03:00.9]} 1... Nf6 {[%clk 0:02:59.1]} 2. Nf3 {[%clk 0:03:01.3]}
2... e6 {[%clk 0:02:58]} 3. Bf4 {[%clk 0:03:01.6]} 3... d5 {[%clk 0:02:54.4]} 4.
e3 {[%clk 0:03:02]} 4... Be7 {[%clk 0:02:52.8]} 5. h3 {[%clk 0:02:55.2]} 5...
O-O {[%clk 0:02:53.1]} 6. Nbd2 {[%clk 0:02:53.4]} 6... b6 {[%clk 0:02:53.6]} 7.
a4 {[%clk 0:02:44.3]} 7... c5 {[%clk 0:02:35.2]} 8. c3 {[%clk 0:02:42.8]} 8...
a5 {[%clk 0:02:25.7]} 9. Bb5 {[%clk 0:02:39.8]} 9... Ba6 {[%clk 0:02:21.8]} 10.
O-O {[%clk 0:02:38.8]} 10... Bd6 {[%clk 0:02:07.4]} 11. Be5 {[%clk 0:02:18.7]}
11... Bxe5 {[%clk 0:01:45.5]} 12. Nxe5 {[%clk 0:02:18.7]} 12... Nfd7 {[%clk
0:01:39.5]} 13. Nd3 {[%clk 0:02:13]} 13... c4 {[%clk 0:01:36.7]} 14. Nf4 {[%clk
0:02:13.2]} 14... Qc7 {[%clk 0:01:19.5]} 15. Qe2 {[%clk 0:01:54]} 15... Bxb5
{[%clk 0:01:19.2]} 16. axb5 {[%clk 0:01:54.2]} 16... Nf6 {[%clk 0:01:11.7]} 17.
Rfc1 {[%clk 0:01:29.6]} 17... Nbd7 {[%clk 0:01:05.4]} 18. b3 {[%clk 0:01:29.6]}
18... cxb3 {[%clk 0:01:05.5]} 19. Nxb3 {[%clk 0:01:30.3]} 19... Rfc8 {[%clk
0:01:02]} 20. Nd2 {[%clk 0:01:29.6]} 20... e5 {[%clk 0:00:50.2]} 21. Nd3 {[%clk
0:01:27.7]} 21... Ne4 {[%clk 0:00:36.4]} 22. Nxe4 {[%clk 0:00:47.7]} 22... dxe4
{[%clk 0:00:37.3]} 23. Nb2 {[%clk 0:00:47.9]} 23... h6 {[%clk 0:00:30]} 24. c4
{[%clk 0:00:46.9]} 24... Qd6 {[%clk 0:00:24.3]} 25. Rd1 {[%clk 0:00:45.2]} 25...
exd4 {[%clk 0:00:17.8]} 26. exd4 {[%clk 0:00:42.2]} 26... Nf6 {[%clk 0:00:17.3]}
27. Na4 {[%clk 0:00:37.8]} 27... Rc7 {[%clk 0:00:14.4]} 28. c5 {[%clk
0:00:38.1]} 28... bxc5 {[%clk 0:00:13.8]} 29. dxc5 {[%clk 0:00:38.7]} 29... Qe6
{[%clk 0:00:12.1]} 30. b6 {[%clk 0:00:35.5]} 30... Rb7 {[%clk 0:00:12.2]} 31.
Qb5 {[%clk 0:00:33.7]} 31... Rc8 {[%clk 0:00:09.9]} 32. Rd6 {[%clk 0:00:33.1]}
32... Qe5 {[%clk 0:00:09]} 33. Rad1 {[%clk 0:00:33.6]} 33... e3 {[%clk
0:00:08.4]} 34. fxe3 {[%clk 0:00:33.8]} 34... Qxe3+ {[%clk 0:00:08.3]} 35. Kh1
{[%clk 0:00:32.9]} 35... Ne4 {[%clk 0:00:08.9]} 36. Rd8+ {[%clk 0:00:33.3]}
36... Rxd8 {[%clk 0:00:09.2]} 37. Rxd8+ {[%clk 0:00:33.5]} 37... Kh7 {[%clk
0:00:09.9]} 38. Qd3 {[%clk 0:00:33.9]} 38... Qxd3 {[%clk 0:00:08]} 39. Rxd3
{[%clk 0:00:32.9]} 39... Nf2+ {[%clk 0:00:08.5]} 40. Kg1 {[%clk 0:00:32.4]}
40... Nxd3 {[%clk 0:00:09.4]} 41. c6 {[%clk 0:00:33]} 41... Nc5 {[%clk
0:00:03.8]} 42. c7 {[%clk 0:00:15.5]} 42... Nxa4 {[%clk 0:00:02.6]} 43. c8=Q
{[%clk 0:00:16]} 43... Rxb6 {[%clk 0:00:03.1]} 44. Qc2+ {[%clk 0:00:14.4]} 44...
g6 {[%clk 0:00:03.6]} 45. Qxa4 {[%clk 0:00:14.6]} 45... Re6 {[%clk 0:00:02.9]}
46. Qxa5 {[%clk 0:00:14.3]} 46... h5 {[%clk 0:00:03.6]} 47. Kf2 {[%clk
0:00:13.5]} 47... Kg7 {[%clk 0:00:03.8]} 48. Kg3 {[%clk 0:00:13.9]} 48... Kh7
{[%clk 0:00:03.7]} 49. Kf4 {[%clk 0:00:12.9]} 49... Kg7 {[%clk 0:00:04.4]} 50.
Qa1+ {[%clk 0:00:07.8]} 50... Kh7 {[%clk 0:00:04.3]} 51. Kg5 {[%clk 0:00:08.4]}
51... Kg8 {[%clk 0:00:02.8]} 52. Kh6 {[%clk 0:00:08.1]} 52... g5+ {[%clk
0:00:01.9]} 53. Kxg5 {[%clk 0:00:08.3]} 53... Rg6+ {[%clk 0:00:02.6]} 54. Kxh5
{[%clk 0:00:07.1]} 54... Rxg2 {[%clk 0:00:03.5]} 55. h4 {[%clk 0:00:07.4]} 55...
Rg6 {[%clk 0:00:03.8]} 56. Qa8+ {[%clk 0:00:05.8]} 56... Kg7 {[%clk 0:00:04.2]}
57. Qa1+ {[%clk 0:00:05.6]} 57... Kg8 {[%clk 0:00:04.3]} 58. Qf1 {[%clk
0:00:06.3]} 58... Kg7 {[%clk 0:00:04.6]} 59. Qe2 {[%clk 0:00:02.5]} 59... Kg8
{[%clk 0:00:04.8]} 60. Qe5 {[%clk 0:00:02.8]} 60... Kh7 {[%clk 0:00:04.7]} 61.
Qe8 {[%clk 0:00:02.9]} 61... Kg7 {[%clk 0:00:05.2]} 62. Qd8 {[%clk 0:00:03]}
62... Kh7 {[%clk 0:00:05.3]} 63. Qf8 {[%clk 0:00:03.4]} 63... Rf6 {[%clk
0:00:03.8]} 64. Kg5 {[%clk 0:00:03.9]} 64... Rg6+ {[%clk 0:00:02.9]} 65. Kf5
{[%clk 0:00:04.3]} 65... Rg7 {[%clk 0:00:02.6]} 66. h5 {[%clk 0:00:04]} 66...
Rg8 {[%clk 0:00:02.4]} 67. Qxf7+ {[%clk 0:00:04.1]} 67... Rg7 {[%clk 0:00:03.1]}
68. Qf6 {[%clk 0:00:03.2]} 68... Rd7 {[%clk 0:00:03]} 69. Qe6 {[%clk 0:00:03.1]}
69... Rg7 {[%clk 0:00:02.7]} 70. Qe4 {[%clk 0:00:03.1]} 70... Kh6 {[%clk
0:00:02.8]} 71. Kf6 {[%clk 0:00:03.5]} 71... Rg5 {[%clk 0:00:02.2]} 72. Qf4
{[%clk 0:00:03.4]} 72... Kxh5 {[%clk 0:00:02.6]} 73. Qxg5# {[%clk 0:00:03.9]}
1-0

[Event "Early-Titled-Tuesday-Blitz-October-10-2023"]
[Site "Chess.com"]
[Date "2023.10.10"]
[Round "3"]
[White "vladgoncharov"]
[Black "emeli_chess"]
[Result "0-1"]
[WhiteElo "2517"]
[BlackElo "2375"]
[TimeControl "180+1"]
[EndTime "8:29:52 PDT"]
[Termination "emeli_chess won by resignation"]

1. d4 {[%clk 0:03:00.9]} 1... Nf6 {[%clk 0:02:58.9]} 2. c4 {[%clk 0:03:00.1]}
2... e6 {[%clk 0:02:58.8]} 3. Nc3 {[%clk 0:02:59.8]} 3... Bb4 {[%clk 0:02:58.2]}
4. e3 {[%clk 0:02:59.7]} 4... b6 {[%clk 0:02:57.3]} 5. Bd3 {[%clk 0:02:58.8]}
5... Bb7 {[%clk 0:02:52.2]} 6. Nf3 {[%clk 0:02:58.1]} 6... O-O {[%clk
0:02:49.9]} 7. O-O {[%clk 0:02:57.4]} 7... Bxc3 {[%clk 0:02:48.9]} 8. bxc3
{[%clk 0:02:57.1]} 8... Be4 {[%clk 0:02:49.1]} 9. Be2 {[%clk 0:02:56.8]} 9... d5
{[%clk 0:02:46]} 10. Ne1 {[%clk 0:02:56]} 10... c5 {[%clk 0:02:43.2]} 11. f3
{[%clk 0:02:54.6]} 11... Bg6 {[%clk 0:02:43.4]} 12. a4 {[%clk 0:02:35.9]} 12...
Nc6 {[%clk 0:02:42.1]} 13. Ba3 {[%clk 0:02:34.2]} 13... Na5 {[%clk 0:02:40.3]}
14. dxc5 {[%clk 0:02:29.7]} 14... Nxc4 {[%clk 0:02:21.9]} 15. Bxc4 {[%clk
0:02:29.2]} 15... dxc4 {[%clk 0:02:22]} 16. e4 {[%clk 0:02:26.8]} 16... Qxd1
{[%clk 0:02:09.6]} 17. Rxd1 {[%clk 0:02:25.2]} 17... Rfc8 {[%clk 0:02:04.3]} 18.
Rd4 {[%clk 0:02:06.8]} 18... bxc5 {[%clk 0:02:00.8]} 19. Rxc4 {[%clk 0:02:06.2]}
19... Nd7 {[%clk 0:02:01]} 20. a5 {[%clk 0:01:54.6]} 20... e5 {[%clk 0:01:38.3]}
21. Nd3 {[%clk 0:01:49.7]} 21... f6 {[%clk 0:01:38]} 22. Ra1 {[%clk 0:01:27.4]}
22... Bf7 {[%clk 0:01:36.7]} 23. Rxc5 {[%clk 0:01:24.8]} 23... Nxc5 {[%clk
0:01:36.4]} 24. Nxc5 {[%clk 0:01:24.6]} 24... Rd8 {[%clk 0:01:26.2]} 25. a6
{[%clk 0:00:58.2]} 25... Bc4 {[%clk 0:01:21.6]} 26. Bb4 {[%clk 0:00:57.5]} 26...
Rd2 {[%clk 0:01:16.2]} 27. h4 {[%clk 0:00:41.6]} 27... h5 {[%clk 0:01:12.1]} 28.
Nb7 {[%clk 0:00:30]} 28... Rc8 {[%clk 0:01:00]} 29. Bc5 {[%clk 0:00:27.1]} 29...
Rc6 {[%clk 0:00:59.4]} 30. Bxa7 {[%clk 0:00:26.8]} 30... Rxa6 {[%clk 0:00:59.5]}
31. Rxa6 {[%clk 0:00:26.3]} 31... Bxa6 {[%clk 0:00:59.8]} 32. Nc5 {[%clk
0:00:25]} 32... Bc4 {[%clk 0:00:57.4]} 33. Bb6 {[%clk 0:00:23.3]} 33... Ra2
{[%clk 0:00:50.3]} 34. Nd7 {[%clk 0:00:18.7]} 34... Ra3 {[%clk 0:00:47.9]} 35.
Bf2 {[%clk 0:00:16.7]} 35... Rxc3 {[%clk 0:00:47.5]} 36. Nb6 {[%clk 0:00:16.6]}
36... Rc2 {[%clk 0:00:46.8]} 37. Nd7 {[%clk 0:00:12]} 37... Kf7 {[%clk
0:00:42.5]} 38. Nc5 {[%clk 0:00:11.7]} 38... Bb5 {[%clk 0:00:39.1]} 39. Be3
{[%clk 0:00:11.7]} 39... Rc3 {[%clk 0:00:30.8]} 40. Bf2 {[%clk 0:00:11.6]} 40...
Rc1+ {[%clk 0:00:30.9]} 41. Kh2 {[%clk 0:00:11.5]} 41... g5 {[%clk 0:00:30.1]}
42. hxg5 {[%clk 0:00:11.4]} 42... fxg5 {[%clk 0:00:30.2]} 43. Be3 {[%clk
0:00:11.4]} 43... Rc2 {[%clk 0:00:28.8]} 44. Kg1 {[%clk 0:00:11.2]} 44... Kf6
{[%clk 0:00:26.5]} 45. Nb7 {[%clk 0:00:09.8]} 45... Re2 {[%clk 0:00:22.4]} 46.
Bf2 {[%clk 0:00:09.7]} 46... Rd2 {[%clk 0:00:21.2]} 47. Nc5 {[%clk 0:00:09.6]}
47... Rd1+ {[%clk 0:00:21.4]} 48. Kh2 {[%clk 0:00:09.1]} 48... h4 {[%clk
0:00:21.5]} 49. Nb3 {[%clk 0:00:08]} 49... Bf1 {[%clk 0:00:20.2]} 50. Nc5 {[%clk
0:00:06.8]} 50... Rc1 {[%clk 0:00:19]} 51. Nb3 {[%clk 0:00:06.2]} 51... Rc2
{[%clk 0:00:18.8]} 52. Kg1 {[%clk 0:00:06.5]} 52... Bxg2 {[%clk 0:00:16.2]} 53.
Kxg2 {[%clk 0:00:06.2]} 53... h3+ {[%clk 0:00:16.1]} 54. Kg1 {[%clk 0:00:06.1]}
54... h2+ {[%clk 0:00:16.2]} 55. Kxh2 {[%clk 0:00:06.5]} 55... Rxf2+ {[%clk
0:00:16.4]} 56. Kg3 {[%clk 0:00:07]} 56... Rc2 {[%clk 0:00:16.2]} 57. Na5 {[%clk
0:00:06.2]} 57... Rc3 {[%clk 0:00:15.5]} 58. Nb7 {[%clk 0:00:05.9]} 58... Ke7
{[%clk 0:00:14.2]} 59. Kg4 {[%clk 0:00:04.3]} 59... Kd7 {[%clk 0:00:13.6]} 60.
Kxg5 {[%clk 0:00:04.6]} 60... Rxf3 {[%clk 0:00:13.8]} 61. Nc5+ {[%clk
0:00:04.3]} 61... Kd6 {[%clk 0:00:13.4]} 62. Nb7+ {[%clk 0:00:04.4]} 62... Kc6
{[%clk 0:00:12.2]} 63. Nd8+ {[%clk 0:00:03.7]} 63... Kd7 {[%clk 0:00:11.8]} 64.
Nf7 {[%clk 0:00:03.5]} 64... Ke6 {[%clk 0:00:10.4]} 65. Nh6 {[%clk 0:00:03.6]}
65... Rf4 {[%clk 0:00:10]} 66. Nf5 {[%clk 0:00:03.5]} 66... Rxe4 {[%clk
0:00:09.8]} 67. Ng3 {[%clk 0:00:04.2]} 67... Rf4 {[%clk 0:00:09.5]} 68. Nh5
{[%clk 0:00:04.4]} 68... Rf8 {[%clk 0:00:09.3]} 69. Kg4 {[%clk 0:00:05]} 69...
Kd5 {[%clk 0:00:07.7]} 70. Ng3 {[%clk 0:00:05.3]} 70... Kd4 {[%clk 0:00:07.2]}
71. Kh3 {[%clk 0:00:04.3]} 71... e4 {[%clk 0:00:07.1]} 72. Kg2 {[%clk
0:00:04.8]} 72... e3 {[%clk 0:00:07.5]} 73. Kg1 {[%clk 0:00:02.9]} 73... Kd3
{[%clk 0:00:07.6]} 74. Kg2 {[%clk 0:00:01.5]} 74... e2 {[%clk 0:00:07.9]} 75.
Nh1 {[%clk 0:00:02.1]} 75... e1=Q {[%clk 0:00:07.6]} 76. Nf2+ {[%clk 0:00:03]}
76... Qxf2+ {[%clk 0:00:07.8]} 0-1

[Event "Early-Titled-Tuesday-Blitz-October-10-2023"]
[Site "Chess.com"]
[Date "2023.10.10"]
[Round "3"]
[White "TomLiu777"]
[Black "SirStrateg"]
[Result "0-1"]
[WhiteElo "2359"]
[BlackElo "2583"]
[TimeControl "180+1"]
[EndTime "8:30:10 PDT"]
[Termination "SirStrateg won on time"]

1. c4 {[%clk 0:03:00.9]} 1... e5 {[%clk 0:03:00.2]} 2. Nc3 {[%clk 0:02:57.3]}
2... Bb4 {[%clk 0:02:58.9]} 3. Nd5 {[%clk 0:02:56]} 3... Bd6 {[%clk 0:02:58.8]}
4. d4 {[%clk 0:02:49.9]} 4... Nc6 {[%clk 0:02:49.3]} 5. Nf3 {[%clk 0:02:44.5]}
5... Nge7 {[%clk 0:02:40.6]} 6. e4 {[%clk 0:02:35]} 6... exd4 {[%clk 0:02:32.2]}
7. Nxd4 {[%clk 0:02:31.5]} 7... O-O {[%clk 0:02:14.9]} 8. Be2 {[%clk 0:02:30.7]}
8... Bc5 {[%clk 0:02:05.9]} 9. Be3 {[%clk 0:02:15.2]} 9... Nxd5 {[%clk 0:01:55]}
10. cxd5 {[%clk 0:02:12.1]} 10... Nxd4 {[%clk 0:01:53.6]} 11. Bxd4 {[%clk
0:02:11.7]} 11... Bb4+ {[%clk 0:01:54.2]} 12. Bc3 {[%clk 0:02:12.1]} 12... Bxc3+
{[%clk 0:01:54.2]} 13. bxc3 {[%clk 0:02:12.7]} 13... d6 {[%clk 0:01:54]} 14. Qd4
{[%clk 0:02:08.9]} 14... f5 {[%clk 0:01:50.6]} 15. Bd3 {[%clk 0:01:30.3]} 15...
fxe4 {[%clk 0:01:38.3]} 16. Bxe4 {[%clk 0:01:28.8]} 16... Qf6 {[%clk 0:01:36.9]}
17. Qxf6 {[%clk 0:01:22.9]} 17... Rxf6 {[%clk 0:01:35.6]} 18. Ke2 {[%clk
0:01:19.1]} 18... Bd7 {[%clk 0:01:35.1]} 19. Rab1 {[%clk 0:01:09]} 19... Re8
{[%clk 0:01:33.9]} 20. f3 {[%clk 0:01:04.8]} 20... b6 {[%clk 0:01:33.8]} 21. Kd3
{[%clk 0:01:01]} 21... h6 {[%clk 0:01:31.8]} 22. Rhe1 {[%clk 0:00:59.3]} 22...
Kf8 {[%clk 0:01:31.9]} 23. Kd4 {[%clk 0:00:52.5]} 23... Re5 {[%clk 0:01:30.9]}
24. Re3 {[%clk 0:00:38.3]} 24... g5 {[%clk 0:01:22.7]} 25. Rbe1 {[%clk
0:00:34.9]} 25... Rf7 {[%clk 0:01:18.1]} 26. a4 {[%clk 0:00:33.4]} 26... a5
{[%clk 0:01:16.1]} 27. Bc2 {[%clk 0:00:27.2]} 27... Rxe3 {[%clk 0:01:15.3]} 28.
Rxe3 {[%clk 0:00:26.3]} 28... Rf4+ {[%clk 0:01:13.2]} 29. Re4 {[%clk 0:00:24.2]}
29... Rf5 {[%clk 0:01:05]} 30. c4 {[%clk 0:00:22.1]} 30... Kf7 {[%clk
0:01:04.2]} 31. Re3 {[%clk 0:00:19]} 31... Rf4+ {[%clk 0:01:02.5]} 32. Re4
{[%clk 0:00:19.6]} 32... Rf6 {[%clk 0:01:03.1]} 33. Re3 {[%clk 0:00:19.2]} 33...
Kf8 {[%clk 0:01:00.6]} 34. Re4 {[%clk 0:00:19.5]} 34... Rf7 {[%clk 0:01:01.1]}
35. Re3 {[%clk 0:00:19.8]} 35... Kg7 {[%clk 0:01:01.6]} 36. Re4 {[%clk
0:00:19.2]} 36... Kf6 {[%clk 0:01:01.8]} 37. Re3 {[%clk 0:00:18.7]} 37... Re7
{[%clk 0:00:56.7]} 38. Rxe7 {[%clk 0:00:17.6]} 38... Kxe7 {[%clk 0:00:57.6]} 39.
g4 {[%clk 0:00:11.5]} 39... Kf6 {[%clk 0:00:55.4]} 40. Bd1 {[%clk 0:00:10.8]}
40... Be8 {[%clk 0:00:54.4]} 41. Bc2 {[%clk 0:00:11.4]} 41... h5 {[%clk
0:00:54.5]} 42. h3 {[%clk 0:00:11.4]} 42... h4 {[%clk 0:00:46.7]} 43. Bd1 {[%clk
0:00:07.8]} 43... Bd7 {[%clk 0:00:43]} 44. Bc2 {[%clk 0:00:07.3]} 44... c6
{[%clk 0:00:40]} 45. Bd1 {[%clk 0:00:07.2]} 45... Be8 {[%clk 0:00:34.4]} 46. Bc2
{[%clk 0:00:06.3]} 46... cxd5 {[%clk 0:00:33.5]} 47. Kxd5 {[%clk 0:00:05.5]}
47... Ke7 {[%clk 0:00:34]} 48. Bb3 {[%clk 0:00:04.1]} 48... Kd7 {[%clk
0:00:31.2]} 49. Ke4 {[%clk 0:00:04]} 49... Bg6+ {[%clk 0:00:30.4]} 50. Kd4
{[%clk 0:00:04.3]} 50... Kc6 {[%clk 0:00:28.7]} 51. Bd1 {[%clk 0:00:04.4]} 51...
Bb1 {[%clk 0:00:28.1]} 52. Bb3 {[%clk 0:00:03.5]} 52... Bg6 {[%clk 0:00:24.8]}
53. Bd1 {[%clk 0:00:03.6]} 53... Bf7 {[%clk 0:00:24.8]} 54. Bb3 {[%clk
0:00:02.3]} 54... Be6 {[%clk 0:00:24.7]} 55. Bd1 {[%clk 0:00:02.8]} 55... d5
{[%clk 0:00:20.6]} 56. cxd5+ {[%clk 0:00:02.8]} 56... Bxd5 {[%clk 0:00:21.2]}
57. Ke5 {[%clk 0:00:02.9]} 57... Bc4 {[%clk 0:00:18]} 58. Kf6 {[%clk 0:00:02.8]}
58... Bf1 {[%clk 0:00:18.4]} 59. Kxg5 {[%clk 0:00:02.9]} 59... Bxh3 {[%clk
0:00:18.9]} 60. Kxh4 {[%clk 0:00:03.5]} 60... Bf1 {[%clk 0:00:18.4]} 61. g5
{[%clk 0:00:04]} 61... Bd3 {[%clk 0:00:15.8]} 62. f4 {[%clk 0:00:03.6]} 62...
Kd5 {[%clk 0:00:16.1]} 63. Kh5 {[%clk 0:00:04.2]} 63... Ke6 {[%clk 0:00:16.6]}
64. g6 {[%clk 0:00:04.6]} 64... Kf6 {[%clk 0:00:17.2]} 65. Kh6 {[%clk
0:00:04.5]} 65... Bxg6 {[%clk 0:00:17.4]} 66. Bb3 {[%clk 0:00:04.8]} 66... Be8
{[%clk 0:00:15.2]} 67. Bc2 {[%clk 0:00:03.7]} 67... Bd7 {[%clk 0:00:15.6]} 68.
Bb3 {[%clk 0:00:03]} 68... Kf5 {[%clk 0:00:14.3]} 69. Kg7 {[%clk 0:00:03.7]}
69... Kxf4 {[%clk 0:00:14.2]} 70. Kf7 {[%clk 0:00:04.3]} 70... Ke5 {[%clk
0:00:14.5]} 71. Ke7 {[%clk 0:00:04.5]} 71... Bf5 {[%clk 0:00:14.3]} 72. Kd8
{[%clk 0:00:03.2]} 72... Kd6 {[%clk 0:00:14.6]} 73. Bd1 {[%clk 0:00:02.1]} 73...
Kc5 {[%clk 0:00:14.9]} 74. Kc7 {[%clk 0:00:02]} 74... Bg6 {[%clk 0:00:14.6]} 75.
Bb3 {[%clk 0:00:01.9]} 75... Be8 {[%clk 0:00:14.8]} 76. Bd1 {[%clk 0:00:02.4]}
76... Kb4 {[%clk 0:00:14.5]} 0-1